bitfinex/quotes_BTCUSD_20250908
["timestamp","ask_amount","ask_price","bid_price","bid_amount"]
[1757369166183,0.51802884,112350.0,112340.0,0.06832]
[1757369166421,0.97860289,112350.0,112340.0,0.22132]
[1757369166646,1.07265888,112350.0,112340.0,0.22132]
[1757369166891,1.09937652,112350.0,112340.0,0.22132]
[1757369169218,1.10037652,112350.0,112340.0,0.22132]
[1757369169475,1.1412666,112350.0,112340.0,0.22132]
[1757369171505,1.5806666,112350.0,112340.0,0.22132]
[1757369172555,1.12315255,112350.0,112340.0,0.22132]
[1757369172772,1.12315255,112350.0,112340.0,0.22337]
[1757369173025,1.11795255,112350.0,112340.0,0.22649]
[1757369173247,0.75123491,112350.0,112340.0,0.22649]
[1757369173512,0.31183491,112350.0,112340.0,0.22649]
[1757369173733,0.17902884,112350.0,112340.0,0.30649]
[1757369174406,0.17901513,112350.0,112340.0,0.30649]
[1757369175044,0.44755818,112360.0,112340.0,0.30749]
[1757369175260,0.17801513,112350.0,112340.0,0.30437]
[1757369175804,0.17801513,112350.0,112340.0,0.30749]
[1757369175991,0.17801513,112350.0,112340.0,0.15349]
[1757369176265,0.17801513,112350.0,112340.0,0.30849]
[1757369176456,0.17801513,112350.0,112340.0,0.31049]
[1757369176655,0.17801513,112350.0,112340.0,0.30849]
[1757369176798,0.17801513,112350.0,112340.0,0.30649]
[1757369177018,0.17801513,112350.0,112340.0,0.30849]
[1757369177866,0.17801513,112350.0,112340.0,0.71149]
[1757369179318,0.27640767,112350.0,112340.0,0.70837]
[1757369179538,0.27500112,112350.0,112340.0,0.70837]
[1757369179957,0.27198112,112350.0,112340.0,0.70837]
[1757369180380,0.27500112,112350.0,112340.0,0.55537]
[1757369180628,0.27500112,112350.0,112340.0,0.70833]
[1757369180839,0.27500112,112350.0,112340.0,0.30833]
[1757369181273,0.27500112,112350.0,112340.0,0.30533]
[1757369181493,0.27500112,112350.0,112340.0,0.70533]
[1757369181702,0.27500112,112350.0,112340.0,0.70733]
[1757369181914,0.27198112,112350.0,112340.0,0.70733]
[1757369182136,0.27198112,112350.0,112340.0,0.70533]
[1757369182334,0.27198112,112350.0,112340.0,0.70845]
[1757369182456,0.27198112,112350.0,112340.0,0.71045]
[1757369182656,0.26993112,112350.0,112340.0,0.71045]
[1757369182909,0.26993112,112350.0,112340.0,0.70845]
[1757369183303,0.26993112,112350.0,112340.0,0.70945]
[1757369184305,0.26993112,112350.0,112340.0,0.30945]
[1757369184859,0.26993112,112350.0,112340.0,0.70945]
[1757369187892,0.17801513,112350.0,112340.0,0.30945]
[1757369188308,0.17801513,112350.0,112340.0,0.70945]
[1757369190739,0.17797513,112350.0,112340.0,0.70945]
[1757369191376,0.17797513,112350.0,112340.0,0.30945]
[1757369194714,0.17797513,112350.0,112340.0,0.30633]
[1757369194930,0.18002513,112350.0,112340.0,0.30633]
[1757369195145,0.17797513,112350.0,112340.0,0.30945]
[1757369198402,0.17797513,112350.0,112340.0,0.70945]
[1757369201347,0.17797513,112350.0,112340.0,0.30945]
[1757369201751,0.17797513,112350.0,112340.0,0.70945]
[1757369204937,0.17797513,112350.0,112340.0,0.30945]
[1757369205341,0.17797513,112350.0,112340.0,0.70945]
[1757369206796,0.17797513,112350.0,112340.0,0.30945]
[1757369209407,0.18000513,112350.0,112340.0,0.30937]
[1757369209851,0.17797513,112350.0,112340.0,0.30937]
[1757369210934,0.17797513,112350.0,112340.0,0.70937]
[1757369213829,0.17797513,112350.0,112340.0,0.30937]
[1757369214479,0.17797513,112350.0,112340.0,0.70937]
[1757369217459,0.17797513,112350.0,112340.0,0.30937]
[1757369217827,0.17797513,112350.0,112340.0,0.70937]
[1757369220819,0.17797513,112350.0,112340.0,0.30937]
[1757369221279,0.17797513,112350.0,112340.0,0.70937]
[1757369221677,0.17797513,112350.0,112340.0,0.55649]
[1757369221894,0.17797513,112350.0,112340.0,0.70929]
[1757369224298,0.17797513,112350.0,112340.0,0.30929]
[1757369224920,0.17797513,112350.0,112340.0,0.70929]
[1757369226519,0.17797513,112350.0,112340.0,0.55649]
[1757369226742,0.18000513,112350.0,112340.0,0.70929]
[1757369227580,0.18000513,112350.0,112340.0,0.55649]
[1757369227733,0.18000513,112350.0,112340.0,0.30925]
[1757369228162,0.18000513,112350.0,112340.0,0.15649]
[1757369228463,0.17797513,112350.0,112340.0,0.70925]
[1757369228717,0.17797513,112350.0,112340.0,0.55649]
[1757369228924,0.17797513,112350.0,112340.0,0.70925]
[1757369229532,0.17797513,112350.0,112340.0,0.55649]
[1757369229740,0.17797513,112350.0,112340.0,0.70925]
[1757369229951,0.17797513,112350.0,112340.0,0.709161]
[1757369231358,0.17797513,112350.0,112340.0,0.309161]
[1757369231875,0.17797513,112350.0,112340.0,0.709161]
[1757369234959,0.17797513,112350.0,112340.0,0.309161]
[1757369235378,0.17797513,112350.0,112340.0,0.709161]
[1757369237910,0.27646767,112350.0,112340.0,0.151231]
[1757369238156,0.97809498,112350.0,112340.0,0.303951]
[1757369238386,0.9870812,112350.0,112340.0,0.303951]
[1757369240354,1.02784317,112350.0,112340.0,0.303951]
[1757369240581,0.7686779,112350.0,112340.0,0.303951]
[1757369240790,0.68563917,112350.0,112340.0,0.303951]
[1757369241016,1.01885695,112350.0,112340.0,0.303951]
[1757369243615,1.02766582,112350.0,112340.0,0.303951]
[1757369244192,0.67885695,112350.0,112340.0,0.303951]
[1757369245702,0.76277136,112350.0,112340.0,0.303951]
[1757369246675,0.78948532,112350.0,112340.0,0.303951]
[1757369247874,0.74872335,112350.0,112340.0,0.303951]
[1757369248074,1.08872335,112350.0,112340.0,0.303951]
[1757369248465,0.74872335,112350.0,112340.0,0.303951]
[1757369249775,1.09754054,112350.0,112340.0,0.303951]
[1757369249983,1.13847466,112350.0,112340.0,0.303951]
[1757369251666,0.79637962,112350.0,112340.0,0.303951]
[1757369251851,1.13847466,112350.0,112340.0,0.303951]
[1757369257559,1.13847466,112350.0,112340.0,0.151231]
[1757369257779,1.13847466,112350.0,112340.0,0.303831]
[1757369258411,0.7717607,112350.0,112340.0,0.303831]
[1757369258936,1.07082658,112350.0,112340.0,0.303831]
[1757369259202,1.07082658,112350.0,112340.0,0.151231]
[1757369259413,1.07082658,112350.0,112340.0,0.303831]
[1757369259762,1.09754073,112350.0,112340.0,0.303831]
[1757369261479,0.75544569,112350.0,112340.0,0.303831]
[1757369261968,1.09754073,112350.0,112340.0,0.303831]
[1757369264304,1.09770761,112350.0,112340.0,0.303831]
[1757369267494,0.75544569,112350.0,112340.0,0.303831]
[1757369267736,1.09770761,112350.0,112340.0,0.303831]
[1757369268225,0.75770761,112350.0,112340.0,0.303831]
[1757369268595,0.73099346,112350.0,112340.0,0.303831]
[1757369268800,1.07099346,112350.0,112340.0,0.303831]
[1757369270153,1.09770761,112350.0,112340.0,0.303831]
[1757369270664,0.7466285,112350.0,112340.0,0.303831]
[1757369270867,0.66271409,112350.0,112340.0,0.303831]
[1757369271071,1.00497601,112350.0,112340.0,0.303831]
[1757369272630,1.00497601,112350.0,112340.0,0.303711]
[1757369273480,1.0455178,112350.0,112340.0,0.303711]
[1757369276509,0.70325588,112350.0,112340.0,0.303711]
[1757369276701,1.0455178,112350.0,112340.0,0.303711]
[1757369277175,0.70325588,112350.0,112340.0,0.303711]
[1757369277515,0.65969409,112350.0,112340.0,0.305661]
[1757369277723,0.17797513,112350.0,112340.0,0.308731]
[1757369278751,0.17801513,112350.0,112340.0,0.308731]
[1757369281607,0.44755818,112360.0,112340.0,0.48676197]
[1757369281836,0.47799928,112360.0,112350.0,0.00307]
[1757369282570,0.47799928,112360.0,112350.0,0.03172463]
[1757369283785,0.47799928,112360.0,112350.0,0.03372463]
[1757369285390,0.47799928,112360.0,112350.0,0.03472463]
[1757369286041,0.47799928,112360.0,112350.0,0.43472463]
[1757369287417,0.47799928,112360.0,112350.0,0.58712463]
[1757369291046,0.47799928,112360.0,112350.0,0.80064463]
[1757369291882,0.47799928,112360.0,112350.0,0.40064463]
[1757369292489,0.47799928,112360.0,112350.0,0.80064463]
[1757369292985,0.47799928,112360.0,112350.0,0.64824463]
[1757369293206,0.47799928,112360.0,112350.0,0.80060463]
[1757369295699,0.47799928,112360.0,112350.0,0.40060463]
[1757369295922,0.3,112360.0,112350.0,0.57861976]
[1757369296236,0.3,112360.0,112350.0,0.97861976]
[1757369301601,0.47799928,112360.0,112350.0,0.97861976]
[1757369302191,0.47799928,112360.0,112350.0,0.80060463]
[1757369302653,0.47799928,112360.0,112350.0,0.97861976]
[1757369303462,0.3,112360.0,112350.0,0.97861976]
[1757369304707,0.47799928,112360.0,112350.0,0.64824463]
[1757369304929,0.47799928,112360.0,112350.0,0.80052463]
[1757369306639,0.47799928,112360.0,112350.0,0.77382]
[1757369307891,0.47799928,112360.0,112350.0,0.37382]
[1757369308512,0.47799928,112360.0,112350.0,0.77382]
[1757369311494,0.47799928,112360.0,112350.0,0.37382]
[1757369311830,0.47799928,112360.0,112350.0,0.77382]
[1757369314874,0.47799928,112360.0,112350.0,0.37382]
[1757369315538,0.47799928,112360.0,112350.0,0.77382]
[1757369318491,0.47799928,112360.0,112350.0,0.37382]
[1757369318848,0.47799928,112360.0,112350.0,0.77382]
[1757369321858,0.47799928,112360.0,112350.0,0.37382]
[1757369322491,0.47799928,112360.0,112350.0,0.77382]
[1757369325433,0.47799928,112360.0,112350.0,0.37382]
[1757369325816,0.47799928,112360.0,112350.0,0.77382]
[1757369326143,0.47799928,112360.0,112350.0,0.62154]
[1757369326390,0.47799928,112360.0,112350.0,0.7737]
[1757369328372,0.47799928,112360.0,112350.0,0.85300249]
[1757369341959,0.47799928,112360.0,112350.0,0.70084249]
[1757369342128,0.47799928,112360.0,112350.0,0.85292249]
[1757369344068,0.47799928,112360.0,112350.0,0.92124249]
[1757369349397,0.3,112360.0,112350.0,1.09925762]
[1757369349625,0.3,112360.0,112350.0,1.19117361]
[1757369349840,0.3,112360.0,112350.0,1.11187112]
[1757369350064,0.3,112360.0,112350.0,1.24968913]
[1757369350522,0.3,112360.0,112350.0,1.1385725]
[1757369350813,0.3,112360.0,112350.0,1.4785725]
[1757369351041,0.3,112360.0,112350.0,1.5022925]
[1757369351270,0.3,112360.0,112350.0,1.66340913]
[1757369351501,0.13189874,112360.0,112350.0,1.77394095]
[1757369351725,0.12691672,112360.0,112350.0,1.77394095]
[1757369351964,0.12691672,112360.0,112350.0,1.66282432]
[1757369352882,0.12691672,112360.0,112350.0,1.66082432]
[1757369353326,0.12691672,112360.0,112350.0,1.77084847]
[1757369353555,0.12691672,112360.0,112350.0,1.77284847]
[1757369353775,0.12691672,112360.0,112350.0,1.77684847]
[1757369354004,0.12691672,112360.0,112350.0,1.77484847]
[1757369354471,0.12691672,112360.0,112350.0,1.77684847]
[1757369360483,0.12691672,112360.0,112350.0,1.66582432]
[1757369361410,0.12691672,112360.0,112350.0,1.77684847]
[1757369364961,0.12691672,112360.0,112350.0,1.62476847]
[1757369365182,0.12691672,112360.0,112350.0,1.75570965]
[1757369366479,0.12691672,112360.0,112350.0,1.60382965]
[1757369366702,0.12691672,112360.0,112350.0,1.75566965]
[1757369370918,0.12691672,112360.0,112350.0,2.01178965]
[1757369373885,0.12691672,112360.0,112350.0,1.85994965]
[1757369374195,0.12691672,112360.0,112350.0,2.01174965]
[1757369378581,0.12691672,112360.0,112350.0,1.9007255]
[1757369379332,0.04020773,112360.0,112350.0,1.9007255]
[1757369379769,0.04020773,112360.0,112350.0,1.9008145]
[1757369385692,0.04020773,112360.0,112350.0,1.8968145]
[1757369386156,0.04020773,112360.0,112350.0,1.8948145]
[1757369386362,0.04020773,112360.0,112350.0,2.1624145]
[1757369386574,0.04020773,112360.0,112350.0,2.1694145]
[1757369386777,0.04020773,112360.0,112350.0,2.1664145]
[1757369387223,0.04020773,112360.0,112350.0,2.1694145]
[1757369387450,0.01352182,112360.0,112350.0,2.1694145]
[1757369389075,0.01352182,112360.0,112350.0,2.1695035]
[1757369392282,0.01352182,112360.0,112350.0,1.9049035]
[1757369394684,0.01352182,112360.0,112350.0,2.0643254]
[1757369395523,0.00462851,112360.0,112350.0,2.0643254]
[1757369403391,0.00159359,112360.0,112350.0,2.0643254]
[1757369419240,0.00159359,112360.0,112350.0,1.9125254]
[1757369419455,0.00159359,112360.0,112350.0,2.0639254]
[1757369440728,0.00159359,112360.0,112350.0,2.08486422]
[1757369440942,8.212e-05,112380.0,112370.0,0.52798344]
[1757369441156,8.212e-05,112380.0,112370.0,0.77109943]
[1757369441298,8.212e-05,112380.0,112370.0,0.88762835]
[1757369441518,8.212e-05,112380.0,112370.0,1.28762835]
[1757369442143,8.212e-05,112380.0,112370.0,1.29062835]
[1757369442393,8.212e-05,112380.0,112370.0,1.72926247]
[1757369442612,8.212e-05,112380.0,112370.0,6.29102355]
[1757369443234,8.212e-05,112380.0,112370.0,6.77102355]
[1757369443496,2.85e-05,112380.0,112370.0,6.77102355]
[1757369443717,2.85e-05,112380.0,112370.0,6.93018158]
[1757369443912,2.85e-05,112380.0,112370.0,6.93014158]
[1757369444336,2.85e-05,112380.0,112370.0,6.92714158]
[1757369444688,2.85e-05,112380.0,112370.0,6.93014158]
[1757369444991,2.85e-05,112380.0,112370.0,6.92914158]
[1757369445324,2.85e-05,112380.0,112370.0,6.93314158]
[1757369445542,2.85e-05,112380.0,112370.0,6.93014158]
[1757369445796,2.85e-05,112380.0,112370.0,6.93314158]
[1757369448163,2.85e-05,112380.0,112370.0,6.78198158]
[1757369448375,2.85e-05,112380.0,112370.0,6.93310158]
[1757369449878,2.85e-05,112380.0,112370.0,6.77394355]
[1757369451479,0.02772759,112420.0,112410.0,0.17792011]
[1757369451697,0.02777376,112420.0,112410.0,0.61493411]
[1757369451904,0.02777376,112420.0,112410.0,0.61587011]
[1757369452134,0.02777376,112420.0,112410.0,1.04256052]
[1757369454561,0.02877376,112420.0,112410.0,1.04256052]
[1757369455289,0.02877376,112420.0,112410.0,1.05131136]
[1757369455425,0.03072376,112420.0,112410.0,1.05131136]
[1757369456224,0.03072376,112420.0,112410.0,1.05127136]
[1757369459754,0.02877376,112420.0,112410.0,1.05127136]
[1757369467015,0.02877376,112420.0,112410.0,1.04252052]
[1757369467986,0.02877376,112420.0,112410.0,0.89144052]
[1757369468205,0.02877376,112420.0,112410.0,1.04240052]
[1757369468428,0.02877376,112420.0,112410.0,1.04340052]
[1757369468820,0.02777376,112420.0,112410.0,1.04240052]
[1757369469157,0.02777376,112420.0,112410.0,1.04340052]
[1757369472351,0.02777376,112420.0,112410.0,1.12267854]
[1757369473732,0.02777376,112420.0,112410.0,1.46267854]
[1757369474173,0.02777376,112420.0,112410.0,1.46249893]
[1757369480543,0.02777376,112420.0,112410.0,1.55441492]
[1757369481164,0.02777376,112420.0,112410.0,1.78612613]
[1757369481378,0.02777376,112420.0,112410.0,1.30610495]
[1757369481593,0.00956287,112420.0,112410.0,1.21833572]
[1757369481814,0.00956287,112420.0,112410.0,1.36917572]
[1757369482031,0.00956287,112420.0,112410.0,1.76917572]
[1757369482247,0.00956287,112420.0,112410.0,1.61833572]
[1757369482473,0.00956287,112420.0,112410.0,1.76817572]
[1757369482687,0.00956287,112420.0,112410.0,1.77017572]
[1757369483746,0.00956287,112420.0,112410.0,1.77217572]
[1757369484422,0.00956287,112420.0,112410.0,1.88315355]
[1757369486211,1e-08,112420.0,112410.0,6.95935102]
[1757369486425,1e-08,112420.0,112410.0,6.78231355]
[1757369486640,1e-08,112420.0,112410.0,6.93311355]
[1757369492693,1e-08,112420.0,112410.0,6.93303355]
[1757369508353,1e-08,112420.0,112410.0,6.82205572]
[1757369510293,0.01124917,112430.0,112420.0,0.37790428]
[1757369510506,0.01124917,112430.0,112420.0,0.73470086]
[1757369510721,0.01124917,112430.0,112420.0,0.73679086]
[1757369510938,0.01124917,112430.0,112420.0,1.13679086]
[1757369511555,0.01124917,112430.0,112420.0,1.13779086]
[1757369512225,0.01124917,112430.0,112420.0,1.39379086]
[1757369512438,0.01124917,112430.0,112420.0,1.40504003]
[1757369512651,0.01124917,112430.0,112420.0,1.40604003]
[1757369523683,0.01124917,112430.0,112420.0,1.29487944]
[1757369528848,0.01124917,112430.0,112420.0,1.63487944]
[1757369531334,0.01124917,112430.0,112420.0,1.70311944]
[1757369534244,0.01124917,112430.0,112420.0,1.55255944]
[1757369534480,0.01124917,112430.0,112420.0,1.70295944]
[1757369534921,0.0005829,112430.0,112420.0,1.70295944]
[1757369537861,0.0005829,112430.0,112420.0,1.55255944]
[1757369538068,0.0005829,112430.0,112420.0,1.70295944]
[1757369540037,0.0005829,112430.0,112420.0,1.55255944]
[1757369540235,0.0005829,112430.0,112420.0,1.70291944]
[1757369544316,0.0005829,112430.0,112420.0,1.55255944]
[1757369544535,0.0005829,112430.0,112420.0,1.70291944]
[1757369544757,0.00019326,112430.0,112420.0,1.70291944]
[1757369544969,8e-05,112440.0,112430.0,0.37788846]
[1757369545181,8e-05,112440.0,112430.0,0.73457051]
[1757369545651,8e-05,112440.0,112430.0,0.73663051]
[1757369545908,8e-05,112440.0,112430.0,0.95350793]
[1757369546339,8e-05,112440.0,112430.0,0.95450793]
[1757369547267,0.00012615,112440.0,112430.0,0.95450793]
[1757369548248,0.00012615,112440.0,112430.0,0.99515689]
[1757369548486,0.00012615,112440.0,112430.0,1.38515689]
[1757369548710,0.00012615,112440.0,112430.0,1.32089463]
[1757369548930,0.00012615,112440.0,112430.0,1.29487965]
[1757369549154,0.00012615,112440.0,112430.0,1.85403768]
[1757369549554,0.00012615,112440.0,112430.0,1.85303768]
[1757369549760,0.00012615,112440.0,112430.0,1.85503768]
[1757369549971,0.00012615,112440.0,112430.0,1.69787965]
[1757369550179,0.00012615,112440.0,112430.0,1.69587965]
[1757369550590,0.00012615,112440.0,112430.0,1.69987965]
[1757369551012,0.00012615,112440.0,112430.0,1.69787965]
[1757369551419,0.00012615,112440.0,112430.0,1.70087965]
[1757369554838,7.32e-06,112440.0,112430.0,1.70087965]
[1757369558017,7.32e-06,112440.0,112430.0,1.55055965]
[1757369558228,7.32e-06,112440.0,112430.0,1.70083965]
[1757369560818,7.32e-06,112440.0,112430.0,1.55055965]
[1757369561036,7.32e-06,112440.0,112430.0,1.70079965]
[1757369565846,7.32e-06,112440.0,112430.0,1.55055965]
[1757369566059,7.32e-06,112440.0,112430.0,1.70079965]
[1757369566994,7.32e-06,112440.0,112430.0,1.78079965]
[1757369567416,7.32e-06,112440.0,112430.0,1.35962083]
[1757369567662,0.00209732,112440.0,112430.0,1.12739043]
[1757369567884,0.34645964,112440.0,112430.0,0.89418135]
[1757369568091,0.34645964,112440.0,112430.0,0.85407742]
[1757369568092,0.52433228,112440.0,112430.0,0.85407742]
[1757369568776,0.55101898,112440.0,112430.0,0.85407742]
[1757369569400,0.55101898,112440.0,112430.0,0.84752]
[1757369569834,0.55101898,112440.0,112430.0,0.84552]
[1757369570393,0.86621924,112440.0,112430.0,0.44552]
[1757369570603,0.86621924,112440.0,112430.0,0.44452]
[1757369570851,0.18291996,112440.0,112430.0,0.44452]
[1757369571106,0.5245696,112440.0,112430.0,0.84452]
[1757369571682,0.86621924,112440.0,112430.0,0.69432]
[1757369571882,0.89077924,112440.0,112430.0,0.44452]
[1757369572228,0.5491296,112440.0,112430.0,0.44452]
[1757369572460,0.5491296,112440.0,112430.0,0.84452]
[1757369572662,0.5491296,112440.0,112430.0,0.84440998]
[1757369572875,0.5491296,112440.0,112430.0,0.84340998]
[1757369573305,0.5521296,112440.0,112430.0,0.84340998]
[1757369573596,0.21047996,112440.0,112430.0,0.84340998]
[1757369573794,0.5521296,112440.0,112430.0,0.84340998]
[1757369577627,0.57881782,112440.0,112430.0,0.84340998]
[1757369577953,0.57881782,112440.0,112430.0,0.69320998]
[1757369578159,0.57881782,112440.0,112430.0,0.84340998]
[1757369579607,0.23716818,112440.0,112430.0,0.84340998]
[1757369579844,0.57881782,112440.0,112430.0,0.84340998]
[1757369584244,0.92046746,112440.0,112430.0,0.69320998]
[1757369584450,1.79065957,112440.0,112430.0,0.14828]
[1757369584664,0.76571065,112440.0,112430.0,0.29848]
[1757369584904,0.66908417,112440.0,112430.0,0.29848]
[1757369585086,1.01073381,112440.0,112430.0,0.29848]
[1757369585530,0.32908417,112440.0,112430.0,0.29848]
[1757369585752,0.67073381,112440.0,112430.0,0.29848]
[1757369586002,0.32908417,112440.0,112430.0,0.29848]
[1757369586273,0.67073381,112440.0,112430.0,0.29848]
[1757369588746,0.32908417,112440.0,112430.0,0.29848]
[1757369588958,0.67073381,112440.0,112430.0,0.29848]
[1757369596662,0.23716818,112440.0,112430.0,0.29848]
[1757369597460,0.21260818,112440.0,112430.0,0.29848]
[1757369597686,0.03473554,112440.0,112430.0,0.47636846]
[1757369597899,0.00509732,112440.0,112430.0,0.47838846]
[1757369598108,0.00509732,112440.0,112430.0,0.48145846]
[1757369598309,0.00509732,112440.0,112430.0,0.50814274]
[1757369598778,0.00300732,112440.0,112430.0,1.34005873]
[1757369599461,0.00300732,112440.0,112430.0,1.49005873]
[1757369599677,7.32e-06,112440.0,112430.0,1.49005873]
[1757369600849,0.00100732,112440.0,112430.0,1.49105873]
[1757369601087,0.00631732,112440.0,112430.0,1.09385274]
[1757369601310,0.00631732,112440.0,112430.0,1.24401274]
[1757369601887,0.00631732,112440.0,112430.0,1.24603274]
[1757369602119,0.00308732,112440.0,112430.0,1.24603274]
[1757369602346,0.00100732,112440.0,112430.0,1.34101873]
[1757369604081,0.00308732,112440.0,112430.0,1.34101873]
[1757369605750,0.00308732,112440.0,112430.0,1.19085873]
[1757369605978,0.00631732,112440.0,112430.0,1.33588873]
[1757369606450,0.00631732,112440.0,112430.0,1.33790873]
[1757369606701,0.00100732,112440.0,112430.0,1.49097873]
[1757369607144,0.00100732,112440.0,112430.0,1.46429445]
[1757369609663,0.00631732,112440.0,112430.0,1.06716846]
[1757369609883,0.00631732,112440.0,112430.0,1.21724846]
[1757369610101,0.00308732,112440.0,112430.0,1.21926846]
[1757369610314,0.00100732,112440.0,112430.0,1.22233846]
[1757369613726,0.00631732,112440.0,112430.0,1.21926846]
[1757369614058,0.00308732,112440.0,112430.0,1.21926846]
[1757369614574,0.00631732,112440.0,112430.0,1.06716846]
[1757369614805,0.00631732,112440.0,112430.0,1.21724846]
[1757369615700,0.00631732,112440.0,112430.0,1.06716846]
[1757369615917,0.00631732,112440.0,112430.0,1.21720846]
[1757369618006,0.00631732,112440.0,112430.0,1.43056846]
[1757369624487,0.00772387,112440.0,112430.0,1.43056846]
[1757369624869,0.00631732,112440.0,112430.0,1.43056846]
[1757369625454,0.00772387,112440.0,112430.0,1.43056846]
[1757369627122,0.00631732,112440.0,112430.0,1.43056846]
[1757369627387,0.00631732,112440.0,112430.0,1.43261846]
[1757369627598,0.00308732,112440.0,112430.0,1.51192279]
[1757369627807,0.00100732,112440.0,112430.0,1.51485279]
[1757369629983,0.00311732,112440.0,112430.0,1.51485279]
[1757369634956,0.00311732,112440.0,112430.0,1.51192279]
[1757369635117,0.00615732,112440.0,112430.0,1.51192279]
[1757369635336,0.00756387,112440.0,112430.0,1.51192279]
[1757369635694,0.00756387,112440.0,112430.0,1.01983279]
[1757369635911,0.00756387,112440.0,112430.0,1.16979279]
[1757369636165,0.52691042,112440.0,112430.0,0.44194433]
[1757369636370,0.54986387,112440.0,112430.0,0.5126]
[1757369636803,0.20838996,112440.0,112430.0,0.5126]
[1757369639213,0.18402996,112440.0,112430.0,0.5126]
[1757369639413,0.18402996,112440.0,112430.0,0.69048846]
[1757369640068,0.18402996,112440.0,112430.0,1.09048846]
[1757369640782,0.18402996,112440.0,112430.0,0.76264]
[1757369641015,0.18402996,112440.0,112430.0,0.91256]
[1757369657100,0.18402996,112440.0,112430.0,1.09044846]
[1757369658474,0.18402996,112440.0,112430.0,0.91256]
[1757369659385,0.18402996,112440.0,112430.0,1.09044846]
[1757369660145,0.18402996,112440.0,112430.0,0.91248]
[1757369660282,0.20849996,112440.0,112430.0,0.91248]
[1757369667352,0.20849996,112440.0,112430.0,1.09248846]
[1757369667353,0.00615732,112440.0,112430.0,1.09248846]
[1757369667576,0.00756387,112440.0,112430.0,1.09248846]
[1757369667773,0.18543651,112440.0,112430.0,1.09248846]
[1757369667982,0.18402996,112440.0,112430.0,1.09248846]
[1757369668185,0.00615732,112440.0,112430.0,1.09248846]
[1757369668395,0.18543651,112440.0,112430.0,1.09248846]
[1757369668611,0.18402996,112440.0,112430.0,1.09248846]
[1757369670943,0.18402996,112440.0,112430.0,1.09036846]
[1757369678690,0.00615732,112440.0,112430.0,1.09036846]
[1757369678855,0.00756387,112440.0,112430.0,1.09036846]
[1757369679284,0.18543651,112440.0,112430.0,1.09036846]
[1757369679510,0.18402996,112440.0,112430.0,1.09036846]
[1757369680653,0.00615732,112440.0,112430.0,1.09036846]
[1757369680849,0.00756387,112440.0,112430.0,1.09036846]
[1757369682376,0.18543651,112440.0,112430.0,1.09036846]
[1757369682589,0.18402996,112440.0,112430.0,1.09036846]
[1757369683251,0.00615732,112440.0,112430.0,1.09036846]
[1757369683454,0.00756387,112440.0,112430.0,1.09036846]
[1757369684473,0.18543651,112440.0,112430.0,0.94052846]
[1757369684685,0.27594595,112440.0,112430.0,0.76264]
[1757369684891,0.67677924,112440.0,112430.0,0.51232]
[1757369685108,0.33530533,112440.0,112430.0,0.51232]
[1757369686197,1.03771806,112440.0,112430.0,0.51232]
[1757369686421,1.03771806,112440.0,112430.0,0.36264]
[1757369686659,1.06441151,112440.0,112430.0,0.51232]
[1757369687138,1.06341151,112440.0,112430.0,0.51232]
[1757369687317,1.06341151,112440.0,112430.0,0.51132]
[1757369687472,1.06441151,112440.0,112430.0,0.51132]
[1757369687678,1.06341151,112440.0,112430.0,0.51132]
[1757369688045,1.06741151,112440.0,112430.0,0.51132]
[1757369689178,0.7259376,112440.0,112430.0,0.51132]
[1757369691917,0.73486876,112440.0,112430.0,0.51132]
[1757369694397,1.07654298,112440.0,112430.0,0.51132]
[1757369700224,1.4182172,112440.0,112430.0,0.29796]
[1757369700426,1.4182172,112440.0,112430.0,0.14828]
[1757369700726,1.4182172,112440.0,112430.0,0.29792]
[1757369703141,0.73486876,112440.0,112430.0,0.29792]
[1757369703409,1.4182172,112440.0,112430.0,0.29792]
[1757369704441,0.73486876,112440.0,112430.0,0.29792]
[1757369704676,1.07654298,112440.0,112430.0,0.29792]
[1757369704864,1.4182172,112440.0,112430.0,0.29792]
[1757369709507,1.4182172,112440.0,112430.0,0.29788]
[1757369718649,1.4182172,112440.0,112430.0,0.14828]
[1757369718859,1.4182172,112440.0,112430.0,0.29784]
[1757369719445,1.4182172,112440.0,112430.0,0.14828]
[1757369719745,1.4182172,112440.0,112430.0,0.29784]
[1757369722264,0.53885893,112410.0,112400.0,0.06828]
[1757369722476,1.38669057,112410.0,112400.0,0.2178]
[1757369722693,1.04697635,112410.0,112400.0,0.2178]
[1757369722899,1.07309635,112410.0,112400.0,0.2178]
[1757369723112,1.09979811,112410.0,112400.0,0.2178]
[1757369724087,1.10279811,112410.0,112400.0,0.2178]
[1757369724301,1.44447233,112410.0,112400.0,0.06828]
[1757369724526,1.53809233,112410.0,112400.0,0.2178]
[1757369724666,1.44447233,112410.0,112400.0,0.2178]
[1757369725344,1.10279811,112410.0,112400.0,0.2178]
[1757369726833,1.14298616,112410.0,112400.0,0.2178]
[1757369727385,1.58238616,112410.0,112400.0,0.2178]
[1757369731492,1.92406038,112410.0,112400.0,0.2178]
[1757369733288,1.48466038,112410.0,112400.0,0.2178]
[1757369736185,1.48466038,112410.0,112400.0,0.06828]
[1757369736415,1.48466038,112410.0,112400.0,0.21776]
[1757369738962,1.48466038,112410.0,112400.0,0.06828]
[1757369739160,1.48466038,112410.0,112400.0,0.21776]
[1757369739852,1.48466038,112410.0,112370.0,0.28405212]
[1757369739853,0.1779676,112380.0,112370.0,0.28405212]
[1757369740073,0.95296436,112380.0,112370.0,0.50181212]
[1757369740290,0.95363781,112380.0,112370.0,0.50181212]
[1757369740519,1.34355085,112380.0,112370.0,0.50181212]
[1757369740741,1.00187663,112380.0,112370.0,0.4312]
[1757369741209,1.00187663,112380.0,112370.0,0.43224617]
[1757369742728,1.01085936,112380.0,112370.0,0.43224617]
[1757369743425,1.01085936,112380.0,112370.0,0.28176617]
[1757369743655,1.10277535,112380.0,112370.0,0.43124617]
[1757369744813,1.10277535,112380.0,112370.0,0.06832617]
[1757369745025,1.10277535,112380.0,112370.0,0.21780617]
[1757369746253,0.76110113,112380.0,112370.0,0.21780617]
[1757369746493,1.10277535,112380.0,112370.0,0.21776617]
[1757369750316,1.09379262,112380.0,112370.0,0.21776617]
[1757369750520,0.61490359,112380.0,112370.0,0.21776617]
[1757369751693,0.62396522,112380.0,112370.0,0.21776617]
[1757369757151,0.61490359,112380.0,112370.0,0.21776617]
[1757369760759,0.18090544,112390.0,112370.0,0.40094961]
[1757369761335,0.00889679,112400.0,112390.0,0.17795177]
[1757369761586,0.18823928,112400.0,112390.0,0.33255177]
[1757369761716,0.18683273,112400.0,112390.0,0.33255177]
[1757369761958,0.18891273,112400.0,112390.0,0.1546]
[1757369762154,0.18891273,112400.0,112390.0,0.5546]
[1757369763106,0.18891273,112400.0,112390.0,0.55148]
[1757369763580,0.19185273,112400.0,112390.0,0.55148]
[1757369764645,0.19185273,112400.0,112390.0,0.4]